[Event "Titled Tuesday Blitz June 13 Early 2023"]
[White "Gulkov, Igor A."]
[Black "gau_npukyputb"]
[WhiteFideId "4120973"]
[WhiteElo "2343"]
[BlackElo "2729"]
[Result "0-1"]
[Round "2"]
[TimeControl "180+2"]
[Date "2023.06.13"]
[WhiteClock "0:00:00"]
[BlackClock "0:00:37"]
[Board "84"]

1. Nf3 {[%clk 0:03:00]}  d5 {[%clk 0:02:59]} 2. d4 {[%clk 0:03:00]}  c6 {[%clk 0:03:00]} 3. c4 {[%clk 0:03:00]}  e6 {[%clk 0:02:58]} 4. Qc2 {[%clk 0:02:59]}  Nf6 {[%clk 0:02:57]} 5. g3 {[%clk 0:02:59]}  Nbd7 {[%clk 0:02:54]} 6. Bg2 {[%clk 0:02:59]}  b6 {[%clk 0:02:54]} 7. O-O {[%clk 0:02:59]}  Bb7 {[%clk 0:02:54]} 8. b3 {[%clk 0:02:55]}  Be7 {[%clk 0:02:53]} 9. Rd1 {[%clk 0:02:54]}  O-O {[%clk 0:02:53]} 10. Nc3 {[%clk 0:02:54]}  Rc8 {[%clk 0:02:53]} 11. e4 {[%clk 0:02:54]}  dxe4 {[%clk 0:02:52]} 12. Nxe4 {[%clk 0:02:54]}  Nxe4 {[%clk 0:02:50]} 13. Qxe4 {[%clk 0:02:53]}  Qc7 {[%clk 0:02:49]} 14. Bf4 {[%clk 0:02:52]}  Bd6 {[%clk 0:02:48]} 15. Bxd6 {[%clk 0:02:51]}  Qxd6 {[%clk 0:02:49]} 16. c5 {[%clk 0:02:51]}  Qe7 {[%clk 0:02:37]} 17. b4 {[%clk 0:02:51]}  Rfd8 {[%clk 0:02:36]} 18. h4 {[%clk 0:02:37]}  h6 {[%clk 0:02:35]} 19. Rab1 {[%clk 0:02:23]}  Ba6 {[%clk 0:02:31]} 20. Qc2 {[%clk 0:02:18]}  Qf6 {[%clk 0:02:23]} 21. Rd2 {[%clk 0:02:06]}  e5 {[%clk 0:01:58]} 22. dxe5 {[%clk 0:01:54]}  Nxe5 {[%clk 0:01:59]} 23. Nxe5 {[%clk 0:01:52]}  Rxd2 {[%clk 0:01:39]} 24. Qxd2 {[%clk 0:01:51]}  Qxe5 {[%clk 0:01:39]} 25. Re1 {[%clk 0:01:37]}  Qc7 {[%clk 0:01:26]} 26. Qd6 {[%clk 0:01:09]}  bxc5 {[%clk 0:00:38]} 27. Re8+ {[%clk 0:00:52]}  Kh7 {[%clk 0:00:37]} 28. Be4+ {[%clk 0:00:47]}  g6 {[%clk 0:00:38]} 29. Bxg6+ {[%clk 0:00:25]}  Kg7 {[%clk 0:00:37]} 30. Qxc7 {[%clk 0:00:13]}  Rxc7 {[%clk 0:00:38]} 31. Be4 {[%clk 0:00:00]}  cxb4 {[%clk 0:00:37]} 0-1


[Site "https://www.chess.com"]

[Event "Titled Tuesday Blitz June 13 Early 2023"]
[White "Begunov, Konstantin"]
[Black "Priasmoro, Novendra"]
[WhiteFideId "4118510"]
[BlackFideId "7105029"]
[WhiteElo "1993"]
[BlackElo "2412"]
[Result "0-1"]
[Round "2"]
[TimeControl "180+2"]
[Date "2023.06.13"]
[WhiteClock "0:00:10"]
[BlackClock "0:01:05"]
[Board "85"]

1. d4 {[%clk 0:02:58]}  d5 {[%clk 0:02:25]} 2. c4 {[%clk 0:02:58]}  e6 {[%clk 0:02:25]} 3. Nc3 {[%clk 0:02:58]}  Nf6 {[%clk 0:02:25]} 4. cxd5 {[%clk 0:02:58]}  Nxd5 {[%clk 0:02:24]} 5. Nf3 {[%clk 0:02:57]}  Nxc3 {[%clk 0:02:25]} 6. bxc3 {[%clk 0:02:57]}  c5 {[%clk 0:02:24]} 7. g3 {[%clk 0:02:54]}  Nc6 {[%clk 0:02:24]} 8. Bg2 {[%clk 0:02:53]}  cxd4 {[%clk 0:02:22]} 9. cxd4 {[%clk 0:02:54]}  Bb4+ {[%clk 0:02:22]} 10. Bd2 {[%clk 0:02:55]}  Be7 {[%clk 0:02:21]} 11. O-O {[%clk 0:02:29]}  O-O {[%clk 0:02:18]} 12. Rb1 {[%clk 0:02:19]}  Nxd4 {[%clk 0:02:05]} 13. Nxd4 {[%clk 0:02:06]}  Qxd4 {[%clk 0:02:05]} 14. Be3 {[%clk 0:02:07]}  Qc4 {[%clk 0:01:57]} 15. Bxb7 {[%clk 0:01:56]}  Bxb7 {[%clk 0:01:55]} 16. Rxb7 {[%clk 0:01:57]}  Bf6 {[%clk 0:01:53]} 17. Qb3 {[%clk 0:01:05]}  Qxe2 {[%clk 0:01:44]} 18. Rxa7 {[%clk 0:00:59]}  Rab8 {[%clk 0:01:34]} 19. Qa4 {[%clk 0:00:45]}  Rfd8 {[%clk 0:01:26]} 20. a3 {[%clk 0:00:41]}  h5 {[%clk 0:01:24]} 21. Qa5 {[%clk 0:00:23]}  Rd1 {[%clk 0:01:13]} 22. Rxd1 {[%clk 0:00:19]}  Qxd1+ {[%clk 0:01:14]} 23. Kg2 {[%clk 0:00:20]}  Rb1 {[%clk 0:01:12]} 24. Qc7 {[%clk 0:00:11]}  Qf1+ {[%clk 0:01:05]} 25. Kf3 {[%clk 0:00:12]}  Qh1+ {[%clk 0:01:05]} 26. Kf4 {[%clk 0:00:10]}  g5# {[%clk 0:01:05]} 0-1


[Site "https://www.chess.com"]

[Event "Titled Tuesday Blitz June 13 Early 2023"]
[White "Papasimakopoulos, Alexandros"]
[Black "Rosenberg, Evan S"]
[WhiteFideId "4244125"]
[BlackFideId "2019299"]
[WhiteElo "2359"]
[BlackElo "2366"]
[Result "1-0"]
[Round "2"]
[TimeControl "180+2"]
[Date "2023.06.13"]
[WhiteClock "0:02:11"]
[BlackClock "0:01:01"]
[Board "88"]

1. d4 {[%clk 0:03:00]}  d5 {[%clk 0:02:59]} 2. c4 {[%clk 0:03:01]}  e6 {[%clk 0:03:00]} 3. Nc3 {[%clk 0:03:01]}  c5 {[%clk 0:03:01]} 4. cxd5 {[%clk 0:03:02]}  cxd4 {[%clk 0:03:01]} 5. Qa4+ {[%clk 0:03:01]}  Bd7 {[%clk 0:03:02]} 6. Qxd4 {[%clk 0:03:01]}  exd5 {[%clk 0:03:02]} 7. Qxd5 {[%clk 0:03:02]}  Nf6 {[%clk 0:03:03]} 8. Qd1 {[%clk 0:03:02]}  Bc5 {[%clk 0:03:01]} 9. Nf3 {[%clk 0:03:02]}  O-O {[%clk 0:03:00]} 10. e3 {[%clk 0:03:03]}  Qe7 {[%clk 0:02:59]} 11. Be2 {[%clk 0:02:53]}  Rd8 {[%clk 0:02:58]} 12. O-O {[%clk 0:02:53]}  Nc6 {[%clk 0:02:57]} 13. a3 {[%clk 0:02:50]}  Ne5 {[%clk 0:02:56]} 14. Nd4 {[%clk 0:02:38]}  a6 {[%clk 0:02:38]} 15. b4 {[%clk 0:02:38]}  Bd6 {[%clk 0:02:31]} 16. Bb2 {[%clk 0:02:38]}  Rac8 {[%clk 0:02:29]} 17. Rc1 {[%clk 0:02:37]}  Bb8 {[%clk 0:02:28]} 18. Qb3 {[%clk 0:02:33]}  Nfg4 {[%clk 0:02:22]} 19. h3 {[%clk 0:02:27]}  Qh4 {[%clk 0:02:04]} 20. Nd5 {[%clk 0:02:17]}  Be6 {[%clk 0:01:53]} 21. Rxc8 {[%clk 0:02:12]}  Rxc8 {[%clk 0:01:52]} 22. Nxe6 {[%clk 0:02:11]}  fxe6 {[%clk 0:01:01]} 23. Nf4 {[%clk 0:02:11]} 1-0


[Site "https://www.chess.com"]

[Event "Titled Tuesday Blitz June 13 Early 2023"]
[White "Chuemsakul, Sarocha"]
[Black "Srihari L R"]
[WhiteFideId "6203710"]
[BlackFideId "46617116"]
[WhiteElo "1686"]
[BlackElo "2334"]
[Result "0-1"]
[Round "2"]
[TimeControl "180+2"]
[Date "2023.06.13"]
[WhiteClock "0:00:05"]
[BlackClock "0:00:07"]
[Board "89"]

1. d4 {[%clk 0:03:00]}  d5 {[%clk 0:02:51]} 2. c4 {[%clk 0:03:01]}  dxc4 {[%clk 0:02:48]} 3. e3 {[%clk 0:03:01]}  e6 {[%clk 0:02:42]} 4. Bxc4 {[%clk 0:03:01]}  a6 {[%clk 0:02:40]} 5. a4 {[%clk 0:02:58]}  Nf6 {[%clk 0:02:40]} 6. Nf3 {[%clk 0:02:58]}  b6 {[%clk 0:02:40]} 7. O-O {[%clk 0:02:58]}  Bb7 {[%clk 0:02:40]} 8. Nc3 {[%clk 0:02:58]}  Bb4 {[%clk 0:02:40]} 9. Qe2 {[%clk 0:02:54]}  O-O {[%clk 0:02:40]} 10. Rd1 {[%clk 0:02:54]}  Qe7 {[%clk 0:02:39]} 11. Ne5 {[%clk 0:02:54]}  Nbd7 {[%clk 0:02:38]} 12. Nxd7 {[%clk 0:02:52]}  Qxd7 {[%clk 0:02:36]} 13. f3 {[%clk 0:02:37]}  Nd5 {[%clk 0:01:56]} 14. Bd2 {[%clk 0:02:21]}  a5 {[%clk 0:01:44]} 15. e4 {[%clk 0:02:15]}  Ne7 {[%clk 0:01:33]} 16. Be3 {[%clk 0:02:13]}  Kh8 {[%clk 0:01:33]} 17. h4 {[%clk 0:02:12]}  f5 {[%clk 0:01:33]} 18. Bb5 {[%clk 0:01:07]}  Qd6 {[%clk 0:01:15]} 19. e5 {[%clk 0:00:55]}  Qd8 {[%clk 0:01:11]} 20. Rac1 {[%clk 0:00:51]}  f4 {[%clk 0:01:10]} 21. Bf2 {[%clk 0:00:51]}  Nf5 {[%clk 0:01:09]} 22. Ne4 {[%clk 0:00:48]}  h6 {[%clk 0:01:03]} 23. Bc6 {[%clk 0:00:39]}  Ba6 {[%clk 0:00:52]} 24. Bb5 {[%clk 0:00:38]}  Bxb5 {[%clk 0:00:36]} 25. axb5 {[%clk 0:00:30]}  Rc8 {[%clk 0:00:33]} 26. Rc6 {[%clk 0:00:30]}  Qd5 {[%clk 0:00:24]} 27. Qc4 {[%clk 0:00:26]}  Ne7 {[%clk 0:00:24]} 28. Qxd5 {[%clk 0:00:23]}  exd5 {[%clk 0:00:24]} 29. Nc3 {[%clk 0:00:12]}  Nxc6 {[%clk 0:00:22]} 30. bxc6 {[%clk 0:00:13]}  Bxc3 {[%clk 0:00:22]} 31. bxc3 {[%clk 0:00:14]}  Rfe8 {[%clk 0:00:21]} 32. g3 {[%clk 0:00:14]}  fxg3 {[%clk 0:00:20]} 33. Bxg3 {[%clk 0:00:14]}  Re6 {[%clk 0:00:21]} 34. c4 {[%clk 0:00:14]}  Rd8 {[%clk 0:00:20]} 35. f4 {[%clk 0:00:10]}  g6 {[%clk 0:00:19]} 36. h5 {[%clk 0:00:10]}  Rxc6 {[%clk 0:00:19]} 37. cxd5 {[%clk 0:00:07]}  Rxd5 {[%clk 0:00:18]} 38. hxg6 {[%clk 0:00:07]}  Rxg6 {[%clk 0:00:18]} 39. Kf2 {[%clk 0:00:07]}  c5 {[%clk 0:00:17]} 40. f5 {[%clk 0:00:08]}  Rg5 {[%clk 0:00:17]} 41. f6 {[%clk 0:00:06]}  Kg8 {[%clk 0:00:15]} 42. Bf4 {[%clk 0:00:06]}  Rf5 {[%clk 0:00:14]} 43. Ke3 {[%clk 0:00:06]}  Rxd4 {[%clk 0:00:11]} 44. Rxd4 {[%clk 0:00:06]}  cxd4+ {[%clk 0:00:12]} 45. Ke4 {[%clk 0:00:06]}  Rxf4+ {[%clk 0:00:07]} 46. Kxf4 {[%clk 0:00:07]}  d3 {[%clk 0:00:05]} 47. Ke3 {[%clk 0:00:07]}  Kf7 {[%clk 0:00:05]} 48. Kxd3 {[%clk 0:00:07]}  a4 {[%clk 0:00:04]} 49. Kd4 {[%clk 0:00:08]}  a3 {[%clk 0:00:05]} 50. Kc3 {[%clk 0:00:07]}  a2 {[%clk 0:00:04]} 51. Kb2 {[%clk 0:00:07]}  h5 {[%clk 0:00:05]} 52. Kxa2 {[%clk 0:00:06]}  h4 {[%clk 0:00:06]} 53. Kb3 {[%clk 0:00:06]}  h3 {[%clk 0:00:06]} 54. Kc4 {[%clk 0:00:05]}  h2 {[%clk 0:00:07]} 0-1


[Site "https://www.chess.com"]

[Event "Titled Tuesday Blitz June 13 Early 2023"]
[White "Martinez Ramirez, Lennis"]
[Black "Slavin, Alexey"]
[WhiteFideId "3509079"]
[BlackFideId "24104388"]
[WhiteElo "2410"]
[BlackElo "2264"]
[Result "1-0"]
[Round "2"]
[TimeControl "180+2"]
[Date "2023.06.13"]
[WhiteClock "0:00:08"]
[BlackClock "0:00:00"]
[Board "90"]

1. Nf3 {[%clk 0:02:59]}  Nc6 {[%clk 0:02:59]} 2. d4 {[%clk 0:02:58]}  d6 {[%clk 0:02:58]} 3. d5 {[%clk 0:02:57]}  Ne5 {[%clk 0:02:58]} 4. Nxe5 {[%clk 0:02:56]}  dxe5 {[%clk 0:02:59]} 5. e4 {[%clk 0:02:56]}  a6 {[%clk 0:02:59]} 6. c4 {[%clk 0:02:55]}  Nf6 {[%clk 0:02:59]} 7. Nc3 {[%clk 0:02:55]}  e6 {[%clk 0:03:00]} 8. Be2 {[%clk 0:02:51]}  exd5 {[%clk 0:02:59]} 9. cxd5 {[%clk 0:02:46]}  Bd6 {[%clk 0:02:59]} 10. Bg5 {[%clk 0:02:43]}  h6 {[%clk 0:02:59]} 11. Bh4 {[%clk 0:02:42]}  O-O {[%clk 0:02:59]} 12. Rc1 {[%clk 0:02:42]}  Bd7 {[%clk 0:02:59]} 13. O-O {[%clk 0:02:41]}  Be7 {[%clk 0:02:42]} 14. Bg3 {[%clk 0:02:40]}  Bd6 {[%clk 0:02:41]} 15. a3 {[%clk 0:02:27]}  Qe7 {[%clk 0:02:38]} 16. Qb3 {[%clk 0:02:00]}  b6 {[%clk 0:02:38]} 17. Rfd1 {[%clk 0:01:57]}  Nh7 {[%clk 0:02:19]} 18. Qc2 {[%clk 0:01:53]}  Qe8 {[%clk 0:02:09]} 19. Bd3 {[%clk 0:01:50]}  Nf6 {[%clk 0:02:04]} 20. Qe2 {[%clk 0:01:50]}  Bc8 {[%clk 0:01:56]} 21. Na2 {[%clk 0:01:44]}  Bg4 {[%clk 0:01:50]} 22. f3 {[%clk 0:01:43]}  Bc8 {[%clk 0:01:47]} 23. Nb4 {[%clk 0:01:43]}  a5 {[%clk 0:01:35]} 24. Bb5 {[%clk 0:01:42]}  Bd7 {[%clk 0:01:32]} 25. Bxd7 {[%clk 0:01:38]}  Nxd7 {[%clk 0:01:31]} 26. Nd3 {[%clk 0:01:36]}  Nc5 {[%clk 0:01:27]} 27. Nxc5 {[%clk 0:01:30]}  Bxc5+ {[%clk 0:01:26]} 28. Bf2 {[%clk 0:01:31]}  Bd6 {[%clk 0:01:24]} 29. Rc6 {[%clk 0:01:30]}  Qe7 {[%clk 0:01:24]} 30. Rdc1 {[%clk 0:01:29]}  f5 {[%clk 0:01:21]} 31. exf5 {[%clk 0:01:29]}  Rxf5 {[%clk 0:01:20]} 32. Qe4 {[%clk 0:00:58]}  Raf8 {[%clk 0:01:19]} 33. Be3 {[%clk 0:00:55]}  Kh8 {[%clk 0:00:48]} 34. R6c4 {[%clk 0:00:52]}  Qf7 {[%clk 0:00:43]} 35. Rd1 {[%clk 0:00:38]}  Qg6 {[%clk 0:00:42]} 36. Qg4 {[%clk 0:00:38]}  Qf7 {[%clk 0:00:38]} 37. Re4 {[%clk 0:00:37]}  Rf6 {[%clk 0:00:34]} 38. h4 {[%clk 0:00:35]}  Rg6 {[%clk 0:00:34]} 39. Qh3 {[%clk 0:00:34]}  Qxf3 {[%clk 0:00:31]} 40. Qxf3 {[%clk 0:00:29]}  Rxf3 {[%clk 0:00:31]} 41. Rf1 {[%clk 0:00:29]}  Rxf1+ {[%clk 0:00:29]} 42. Kxf1 {[%clk 0:00:30]}  Rf6+ {[%clk 0:00:28]} 43. Ke2 {[%clk 0:00:30]}  Kg8 {[%clk 0:00:27]} 44. g4 {[%clk 0:00:27]}  Kf7 {[%clk 0:00:17]} 45. Rc4 {[%clk 0:00:26]}  Ke8 {[%clk 0:00:08]} 46. Bd2 {[%clk 0:00:26]}  Kd7 {[%clk 0:00:08]} 47. Be3 {[%clk 0:00:24]}  Rf7 {[%clk 0:00:07]} 48. h5 {[%clk 0:00:15]}  Rf8 {[%clk 0:00:06]} 49. Kd3 {[%clk 0:00:15]}  Rf7 {[%clk 0:00:06]} 50. Ke4 {[%clk 0:00:15]}  Rf1 {[%clk 0:00:06]} 51. Rc2 {[%clk 0:00:14]}  Rf7 {[%clk 0:00:05]} 52. Rf2 {[%clk 0:00:12]}  Rxf2 {[%clk 0:00:05]} 53. Bxf2 {[%clk 0:00:13]}  Ke7 {[%clk 0:00:06]} 54. Kf5 {[%clk 0:00:14]}  Kf7 {[%clk 0:00:06]} 55. Bh4 {[%clk 0:00:14]}  a4 {[%clk 0:00:04]} 56. Bd8 {[%clk 0:00:12]}  b5 {[%clk 0:00:04]} 57. g5 {[%clk 0:00:08]}  hxg5 {[%clk 0:00:04]} 58. Bxg5 {[%clk 0:00:09]}  b4 {[%clk 0:00:02]} 59. axb4 {[%clk 0:00:09]}  Bxb4 {[%clk 0:00:00]} 60. Bc1 {[%clk 0:00:08]} 1-0


[Site "https://www.chess.com"]

[Event "Titled Tuesday Blitz June 13 Early 2023"]
[White "Rian, Kapriaga"]
[Black "Wagner, Dennis"]
[WhiteFideId "7103263"]
[BlackFideId "24650684"]
[WhiteElo "2342"]
[BlackElo "2478"]
[Result "0-1"]
[Round "2"]
[TimeControl "180+2"]
[Date "2023.06.13"]
[WhiteClock "0:00:00"]
[BlackClock "0:02:04"]
[Board "91"]

1. d4 {[%clk 0:03:00]}  d5 {[%clk 0:02:56]} 2. c4 {[%clk 0:02:59]}  e6 {[%clk 0:02:57]} 3. Nf3 {[%clk 0:02:58]}  Nf6 {[%clk 0:02:55]} 4. g3 {[%clk 0:02:58]}  Be7 {[%clk 0:02:53]} 5. Bg2 {[%clk 0:02:58]}  O-O {[%clk 0:02:54]} 6. O-O {[%clk 0:02:57]}  dxc4 {[%clk 0:02:55]} 7. Ne5 {[%clk 0:02:57]}  Nc6 {[%clk 0:02:55]} 8. Bxc6 {[%clk 0:02:56]}  bxc6 {[%clk 0:02:56]} 9. Nxc6 {[%clk 0:02:56]}  Qe8 {[%clk 0:02:56]} 10. Nxe7+ {[%clk 0:02:56]}  Qxe7 {[%clk 0:02:57]} 11. Qa4 {[%clk 0:02:55]}  e5 {[%clk 0:02:54]} 12. dxe5 {[%clk 0:02:55]}  Qxe5 {[%clk 0:02:55]} 13. Nc3 {[%clk 0:02:55]}  Ne4 {[%clk 0:02:54]} 14. Nxe4 {[%clk 0:02:42]}  Qxe4 {[%clk 0:02:54]} 15. Re1 {[%clk 0:02:31]}  Bh3 {[%clk 0:02:49]} 16. f3 {[%clk 0:02:28]}  Qd4+ {[%clk 0:02:50]} 17. e3 {[%clk 0:02:20]}  Qf6 {[%clk 0:02:31]} 18. Qd1 {[%clk 0:02:07]}  Rad8 {[%clk 0:02:26]} 19. Qe2 {[%clk 0:02:07]}  Rd3 {[%clk 0:02:22]} 20. Bd2 {[%clk 0:01:29]}  Qxb2 {[%clk 0:02:16]} 21. Ba5 {[%clk 0:01:28]}  Qe5 {[%clk 0:02:08]} 22. Bb4 {[%clk 0:01:21]}  c5 {[%clk 0:02:08]} 23. Ba3 {[%clk 0:01:18]}  Rxa3 {[%clk 0:02:06]} 24. Qxc4 {[%clk 0:01:15]}  Rxe3 {[%clk 0:02:06]} 25. Kf2 {[%clk 0:00:00]}  Re8 {[%clk 0:02:04]} 0-1


[Site "https://www.chess.com"]

[Event "Titled Tuesday Blitz June 13 Early 2023"]
[White "Di Benedetto, Edoardo"]
[Black "Garrido, Denis"]
[WhiteFideId "875740"]
[BlackFideId "601217"]
[WhiteElo "2296"]
[BlackElo "2326"]
[Result "1-0"]
[Round "2"]
[TimeControl "180+2"]
[Date "2023.06.13"]
[WhiteClock "0:00:23"]
[BlackClock "0:01:14"]
[Board "92"]

1. d4 {[%clk 0:02:54]}  Nf6 {[%clk 0:02:59]} 2. c4 {[%clk 0:02:53]}  e6 {[%clk 0:02:59]} 3. Nc3 {[%clk 0:02:51]}  Bb4 {[%clk 0:02:58]} 4. e3 {[%clk 0:02:51]}  O-O {[%clk 0:02:57]} 5. Bd3 {[%clk 0:02:51]}  c5 {[%clk 0:02:52]} 6. a3 {[%clk 0:02:51]}  Bxc3+ {[%clk 0:02:51]} 7. bxc3 {[%clk 0:02:52]}  b6 {[%clk 0:02:50]} 8. Nf3 {[%clk 0:02:46]}  Nc6 {[%clk 0:02:49]} 9. O-O {[%clk 0:02:46]}  Ba6 {[%clk 0:02:46]} 10. e4 {[%clk 0:02:45]}  Ne8 {[%clk 0:02:36]} 11. e5 {[%clk 0:02:40]}  Na5 {[%clk 0:02:29]} 12. Bxh7+ {[%clk 0:02:10]}  Kxh7 {[%clk 0:02:30]} 13. Ng5+ {[%clk 0:02:09]}  Kg6 {[%clk 0:02:28]} 14. Qg4 {[%clk 0:01:34]}  f5 {[%clk 0:02:26]} 15. Qh4 {[%clk 0:01:14]}  Nf6 {[%clk 0:02:04]} 16. exf6 {[%clk 0:01:14]}  Rh8 {[%clk 0:02:03]} 17. Qg3 {[%clk 0:01:14]}  Kxf6 {[%clk 0:01:59]} 18. Re1 {[%clk 0:00:44]}  Ke7 {[%clk 0:01:19]} 19. Nxe6 {[%clk 0:00:29]}  Qg8 {[%clk 0:01:16]} 20. Nxc5+ {[%clk 0:00:27]}  Kd8 {[%clk 0:01:14]} 21. Nxa6 {[%clk 0:00:24]}  Rc8 {[%clk 0:01:14]} 22. Bg5# {[%clk 0:00:23]} 1-0


[Site "https://www.chess.com"]

[Event "Titled Tuesday Blitz June 13 Early 2023"]
[White "Rakotomaharo, Fy Antenaina"]
[Black "Sarkar, Justin"]
[WhiteFideId "13100050"]
[BlackFideId "2010011"]
[WhiteElo "2427"]
[BlackElo "2151"]
[Result "1-0"]
[Round "2"]
[TimeControl "180+2"]
[Date "2023.06.13"]
[WhiteClock "0:01:25"]
[BlackClock "0:00:23"]
[Board "94"]

1. c4 {[%clk 0:03:00]}  e5 {[%clk 0:02:50]} 2. g3 {[%clk 0:02:58]}  c5 {[%clk 0:02:36]} 3. Bg2 {[%clk 0:02:58]}  Nc6 {[%clk 0:02:36]} 4. Nc3 {[%clk 0:02:58]}  d6 {[%clk 0:02:34]} 5. e3 {[%clk 0:02:56]}  h5 {[%clk 0:02:25]} 6. Nf3 {[%clk 0:02:54]}  g6 {[%clk 0:02:20]} 7. d4 {[%clk 0:02:53]}  Bg7 {[%clk 0:02:07]} 8. dxc5 {[%clk 0:02:44]}  dxc5 {[%clk 0:02:05]} 9. Qxd8+ {[%clk 0:02:44]}  Nxd8 {[%clk 0:02:03]} 10. Bd2 {[%clk 0:02:18]}  Ne7 {[%clk 0:01:57]} 11. Nb5 {[%clk 0:02:13]}  O-O {[%clk 0:01:45]} 12. Bc3 {[%clk 0:02:11]}  e4 {[%clk 0:01:36]} 13. Ng5 {[%clk 0:01:59]}  f5 {[%clk 0:01:20]} 14. Bxg7 {[%clk 0:01:43]}  Kxg7 {[%clk 0:01:20]} 15. f3 {[%clk 0:01:44]}  exf3 {[%clk 0:01:15]} 16. Bxf3 {[%clk 0:01:44]}  Nf7 {[%clk 0:00:51]} 17. Nxf7 {[%clk 0:01:40]}  Kxf7 {[%clk 0:00:50]} 18. O-O-O {[%clk 0:01:37]}  Rb8 {[%clk 0:00:43]} 19. Nxa7 {[%clk 0:01:32]}  Ra8 {[%clk 0:00:42]} 20. Nxc8 {[%clk 0:01:32]}  Nxc8 {[%clk 0:00:23]} 21. Kb1 {[%clk 0:01:25]} 1-0


[Site "https://www.chess.com"]

[Event "Titled Tuesday Blitz June 13 Early 2023"]
[White "benny_aizenberg"]
[Black "Levitan, Caleb Levi"]
[BlackFideId "14332620"]
[WhiteElo "2706"]
[BlackElo "1963"]
[Result "1-0"]
[Round "2"]
[TimeControl "180+2"]
[Date "2023.06.13"]
[WhiteClock "0:00:04"]
[BlackClock "0:00:01"]
[Board "97"]

1. d4 {[%clk 0:02:54]}  d5 {[%clk 0:02:59]} 2. Nf3 {[%clk 0:02:53]}  Nf6 {[%clk 0:02:59]} 3. c4 {[%clk 0:02:54]}  e6 {[%clk 0:02:59]} 4. g3 {[%clk 0:02:53]}  dxc4 {[%clk 0:02:58]} 5. Bg2 {[%clk 0:02:54]}  Bb4+ {[%clk 0:02:59]} 6. Nbd2 {[%clk 0:02:52]}  O-O {[%clk 0:02:44]} 7. O-O {[%clk 0:02:50]}  c3 {[%clk 0:02:43]} 8. bxc3 {[%clk 0:02:47]}  Bxc3 {[%clk 0:02:42]} 9. Rb1 {[%clk 0:02:46]}  Bxd4 {[%clk 0:02:41]} 10. Nxd4 {[%clk 0:02:38]}  Qxd4 {[%clk 0:02:40]} 11. Bb2 {[%clk 0:02:36]}  Qd8 {[%clk 0:02:36]} 12. Qc2 {[%clk 0:02:34]}  c6 {[%clk 0:02:12]} 13. Rfd1 {[%clk 0:02:29]}  Nbd7 {[%clk 0:02:01]} 14. Nc4 {[%clk 0:02:24]}  Qc7 {[%clk 0:01:53]} 15. Ba3 {[%clk 0:02:18]}  c5 {[%clk 0:01:48]} 16. Nd6 {[%clk 0:02:17]}  Rb8 {[%clk 0:01:45]} 17. Qa4 {[%clk 0:02:14]}  b6 {[%clk 0:01:38]} 18. Nb5 {[%clk 0:02:11]}  Qe5 {[%clk 0:01:23]} 19. Nxa7 {[%clk 0:01:58]}  Bb7 {[%clk 0:01:18]} 20. Nc6 {[%clk 0:01:45]}  Bxc6 {[%clk 0:01:13]} 21. Bxc6 {[%clk 0:01:46]}  Qf5 {[%clk 0:00:28]} 22. e4 {[%clk 0:00:35]}  Qh3 {[%clk 0:00:27]} 23. f3 {[%clk 0:00:19]}  Ne5 {[%clk 0:00:25]} 24. Rf1 {[%clk 0:00:14]}  Rfd8 {[%clk 0:00:20]} 25. Rb2 {[%clk 0:00:11]}  Rd3 {[%clk 0:00:12]} 26. Rbf2 {[%clk 0:00:11]}  Nxc6 {[%clk 0:00:10]} 27. Qxc6 {[%clk 0:00:08]}  Rxa3 {[%clk 0:00:10]} 28. Qc7 {[%clk 0:00:09]}  Rf8 {[%clk 0:00:07]} 29. Qxb6 {[%clk 0:00:09]}  c4 {[%clk 0:00:06]} 30. Qc5 {[%clk 0:00:09]}  Rc3 {[%clk 0:00:06]} 31. a4 {[%clk 0:00:09]}  h5 {[%clk 0:00:04]} 32. a5 {[%clk 0:00:08]}  h4 {[%clk 0:00:04]} 33. g4 {[%clk 0:00:07]}  Nh7 {[%clk 0:00:03]} 34. a6 {[%clk 0:00:06]}  Ra8 {[%clk 0:00:02]} 35. a7 {[%clk 0:00:06]}  Ng5 {[%clk 0:00:02]} 36. Qxg5 {[%clk 0:00:05]}  Rxa7 {[%clk 0:00:02]} 37. Qd8+ {[%clk 0:00:04]}  Kh7 {[%clk 0:00:02]} 38. Qd2 {[%clk 0:00:03]}  Raa3 {[%clk 0:00:03]} 39. Qf4 {[%clk 0:00:03]}  Kg8 {[%clk 0:00:03]} 40. Rb1 {[%clk 0:00:03]}  Rxf3 {[%clk 0:00:02]} 41. Qg5 {[%clk 0:00:03]}  Rxf2 {[%clk 0:00:01]} 42. Rb8+ {[%clk 0:00:03]}  Kh7 {[%clk 0:00:01]} 43. Qh5# {[%clk 0:00:04]} 1-0


[Site "https://www.chess.com"]

[Event "Titled Tuesday Blitz June 13 Early 2023"]
[White "Levitskiy, Andrey"]
[Black "Andreassen, Lars"]
[WhiteFideId "14132885"]
[BlackFideId "1504878"]
[WhiteElo "2347"]
[BlackElo "2119"]
[Result "0-1"]
[Round "2"]
[TimeControl "180+2"]
[Date "2023.06.13"]
[WhiteClock "0:00:00"]
[BlackClock "0:00:30"]
[Board "99"]

1. e4 {[%clk 0:03:00]}  d6 {[%clk 0:02:17]} 2. d4 {[%clk 0:03:00]}  Nf6 {[%clk 0:02:18]} 3. Nc3 {[%clk 0:03:00]}  e5 {[%clk 0:02:18]} 4. dxe5 {[%clk 0:03:01]}  dxe5 {[%clk 0:02:18]} 5. Qxd8+ {[%clk 0:03:02]}  Kxd8 {[%clk 0:02:19]} 6. Bg5 {[%clk 0:03:02]}  Bd6 {[%clk 0:02:17]} 7. O-O-O {[%clk 0:02:51]}  Nd7 {[%clk 0:02:06]} 8. Nf3 {[%clk 0:02:12]}  h6 {[%clk 0:02:02]} 9. Bxf6+ {[%clk 0:02:06]}  gxf6 {[%clk 0:02:02]} 10. g3 {[%clk 0:02:01]}  Nc5 {[%clk 0:02:00]} 11. Nh4 {[%clk 0:01:53]}  Be6 {[%clk 0:01:58]} 12. Nf5 {[%clk 0:01:34]}  Nxe4 {[%clk 0:01:34]} 13. Nxe4 {[%clk 0:01:19]}  Bxf5 {[%clk 0:01:33]} 14. Nxd6 {[%clk 0:01:14]}  cxd6 {[%clk 0:01:32]} 15. Rxd6+ {[%clk 0:01:15]}  Ke7 {[%clk 0:01:31]} 16. Rd2 {[%clk 0:01:16]}  Rac8 {[%clk 0:01:22]} 17. Bg2 {[%clk 0:01:12]}  Rc7 {[%clk 0:01:22]} 18. Re1 {[%clk 0:01:10]}  Rhc8 {[%clk 0:01:18]} 19. c3 {[%clk 0:01:09]}  b5 {[%clk 0:01:18]} 20. f4 {[%clk 0:00:26]}  b4 {[%clk 0:01:18]} 21. fxe5 {[%clk 0:00:27]}  bxc3 {[%clk 0:01:17]} 22. exf6+ {[%clk 0:00:25]}  Kxf6 {[%clk 0:01:14]} 23. Rd6+ {[%clk 0:00:23]}  Kg7 {[%clk 0:01:12]} 24. b3 {[%clk 0:00:18]}  a5 {[%clk 0:01:00]} 25. Be4 {[%clk 0:00:17]}  Re8 {[%clk 0:00:53]} 26. Rd4 {[%clk 0:00:15]}  Rce7 {[%clk 0:00:53]} 27. Bxf5 {[%clk 0:00:13]}  Rxe1+ {[%clk 0:00:53]} 28. Kc2 {[%clk 0:00:14]}  R1e2+ {[%clk 0:00:51]} 29. Kxc3 {[%clk 0:00:14]}  Rxa2 {[%clk 0:00:51]} 30. Rd7 {[%clk 0:00:11]}  Rxh2 {[%clk 0:00:45]} 31. Bd3 {[%clk 0:00:08]}  Rg2 {[%clk 0:00:44]} 32. Bc4 {[%clk 0:00:08]}  Rxg3+ {[%clk 0:00:45]} 33. Kb2 {[%clk 0:00:09]}  Rf3 {[%clk 0:00:44]} 34. Ra7 {[%clk 0:00:08]}  Re5 {[%clk 0:00:42]} 35. Ka3 {[%clk 0:00:06]}  h5 {[%clk 0:00:43]} 36. Rd7 {[%clk 0:00:06]}  h4 {[%clk 0:00:42]} 37. Rd4 {[%clk 0:00:07]}  h3 {[%clk 0:00:42]} 38. Rh4 {[%clk 0:00:07]}  Rg5 {[%clk 0:00:33]} 39. Be2 {[%clk 0:00:03]}  Re3 {[%clk 0:00:32]} 40. Ba6 {[%clk 0:00:01]}  Rgg3 {[%clk 0:00:31]} 41. Bc4 {[%clk 0:00:01]}  f5 {[%clk 0:00:30]} 42. Ka4 {[%clk 0:00:00]}  Rg4 {[%clk 0:00:30]} 0-1


[Site "https://www.chess.com"]